[Event "Vezerkepzo GM Christmas 2021"]
[Site "Budapest"]
[Date "2022.01.02"]
[Round "7.2"]
[White "Kojima, Shinya"]
[Black "Sahithi Varshini M"]
[Result "1-0"]
[ECO "E51"]
[WhiteElo "2392"]
[BlackElo "2216"]
[Annotator "ChessBase"]
[PlyCount "79"]
[EventDate "2021.12.26"]
[EventCountry "HUN"]
[SourceTitle "playchess.com"]
[Source "ChessBase"]
[SourceQuality "1"]
[TimeControl "40/5400+30:1800+30"]

1. d4 {[%emt 0:00:05]} Nf6 {[%emt 0:00:14]} 2. c4 {[%emt 0:00:06]} e6 {[%emt 0:00:10]} 3. Nc3 {[%emt 0:00:06]} Bb4 {[%emt 0:00:08]} 4. Bd2 {[%emt 0:00:08]} O-O {[%emt 0:01:05]} 5. Nf3 {[%emt 0:00:09]} d5 {[%emt 0:00:14]} 6. e3 {[%emt 0:00:11]} Nbd7 {[%emt 0:02:38]} 7. Rc1 {[%emt 0:00:17]} Re8 {[%emt 0:01:38]} 8. Qc2 {[%emt 0:02:22]} c6 {[%emt 0:03:51]} 9. Be2 {[%emt 0:04:35]} h6 {[%emt 0:03:07]} 10. O-O {[%emt 0:00:56]} Bd6 {[%emt 0:07:07]} 11. Rfd1 {[%emt 0:07:16]} Qe7 {[%emt 0:14:30]} 12. h3 {[%emt 0:03:41]} dxc4 {[%emt 0:02:02]} 13. Bxc4 {[%emt 0:00:28]} e5 {[%emt 0:00:20]} 14. Nh4 {[%emt 0:02:39]} Nb6 {[%emt 0:16:13]} 15. Ng6 {[%emt 0:03:24]} Qc7 {[%emt 0:00:01]} 16. Nxe5 {[%emt 0:08:53]} Nxc4 {[%emt 0:09:56]} 17. Nxc4 {[%emt 0:00:20]} Bh2+ {[%emt 0:00:03]} 18. Kh1 {[%emt 0:02:10]} b5 {[%emt 0:00:44]} 19. Na5 {[%emt 0:02:44]} b4 {[%emt 0:21:04]} 20. Na4 {[%emt 0:05:16]} Ne4 {[%emt 0:07:49]} 21. Bxb4 {[%emt 0:05:15]} Bf5 {[%emt 0:00:30]} 22. Qe2 {[%emt 0:02:55]} Bg3 {[%emt 0:03:20]} 23. Rxc6 {[%emt 0:16:22]} Bxf2 {[%emt 0:00:08]} 24. Rxc7 {[%emt 0:02:05]} Ng3+ {[%emt 0:00:01]} 25. Kh2 {[%emt 0:00:09]} Nxe2 {[%emt 0:00:03]} 26. Bd6 {[%emt 0:03:59]} Rad8 {[%emt 0:01:36]} 27. Rf1 {[%emt 0:12:45]} Bxe3 {[%emt 0:01:38]} 28. Nb7 {[%emt 0:03:39]} Bd3 {[%emt 0:02:54]} 29. Rfxf7 {[%emt 0:01:50]} Bxd4 {[%emt 0:00:37]} 30. Nxd8 {[%emt 0:01:28]} Rxd8 {[%emt 0:00:02]} 31. Rfd7 {[%emt 0:01:46]} Ra8 {[%emt 0:00:07]} 32. Nc3 {[%emt 0:01:48]} Nxc3 {[%emt 0:01:32]} 33. bxc3 {[%emt 0:00:02]} Bf6 {[%emt 0:00:01]} 34. Rxa7 {[%emt 0:01:28]} Re8 {[%emt 0:00:08]} 35. Be7 {[%emt 0:04:12]} Be5+ {[%emt 0:00:04]} 36. Kh1 {[%emt 0:00:42]} Be4 {[%emt 0:00:44]} 37. Rd8 {[%emt 0:00:46]} Rxd8 {[%emt 0:00:01]} 38. Bxd8 {[%emt 0:00:07]} Bxc3 {[%emt 0:00:05]} 39. Bb6 {[%emt 0:00:49]} Kh7 {[%emt 0:00:25]} 40. a4 {[%emt 0:00:38]} 1-0

[Event "Vezerkepzo GM Christmas 2021"]
[Site "Budapest"]
[Date "2022.01.02"]
[Round "7.3"]
[White "Aditya Vikram Paul"]
[Black "Mihok, Oliver"]
[Result "0-1"]
[ECO "A40"]
[WhiteElo "2281"]
[BlackElo "2536"]
[Annotator "ChessBase"]
[PlyCount "102"]
[EventDate "2021.12.26"]
[EventCountry "HUN"]
[SourceTitle "playchess.com"]
[Source "ChessBase"]
[SourceQuality "1"]
[TimeControl "40/5400+30:1800+30"]

1. d4 {[%emt 0:00:05]} g6 {[%emt 0:00:13]} 2. c4 {[%emt 0:00:04]} Bg7 {[%emt 0:00:04]} 3. g3 {[%emt 0:00:03]} c5 {[%emt 0:00:06]} 4. dxc5 {[%emt 0:01:41]} Qc7 {[%emt 0:02:06]} 5. Bg2 {[%emt 0:00:17]} Qxc5 {[%emt 0:01:23]} 6. Nd2 {[%emt 0:00:07]} Nc6 {[%emt 0:06:22]} 7. Ngf3 {[%emt 0:01:05]} Nf6 {[%emt 0:02:09]} 8. O-O {[%emt 0:02:18]} O-O {[%emt 0:00:14]} 9. Ne1 {[%emt 0:03:19]} d6 {[%emt 0:06:23]} 10. Nd3 {[%emt 0:00:16]} Qd4 {[%emt 0:02:32]} 11. c5 {[%emt 0:06:06]} dxc5 {[%emt 0:04:27]} 12. Nb3 {[%emt 0:00:04]} Qg4 {[%emt 0:04:06]} 13. Nbxc5 {[%emt 0:03:53]} Rd8 {[%emt 0:02:32]} 14. Bf4 {[%emt 0:06:23]} Qh5 {[%emt 0:06:47]} 15. Bc7 {[%emt 0:03:09]} Re8 {[%emt 0:01:31]} 16. Rc1 {[%emt 0:02:35]} e5 {[%emt 0:05:50]} 17. Rc4 {[%emt 0:09:31]} Nd4 {[%emt 0:13:44]} 18. Re1 {[%emt 0:12:05]} Bg4 {[%emt 0:09:26]} 19. f3 {[%emt 0:02:17]} Bh6 {[%emt 0:08:06]} 20. Nf2 {[%emt 0:18:18]} Be3 {[%emt 0:03:06]} 21. Rc3 {[%emt 0:01:51]} Qh6 {[%emt 0:02:34]} 22. Qd3 {[%emt 0:04:22]} Bf5 {[%emt 0:06:33]} 23. Qxe3 {[%emt 0:05:00]} Qxe3 {[%emt 0:00:06]} 24. Rxe3 {[%emt 0:00:03]} Nc2 {[%emt 0:00:13]} 25. Rxe5 {[%emt 0:01:23]} Nxe1 {[%emt 0:00:19]} 26. Nxb7 {[%emt 0:00:22]} Rac8 {[%emt 0:03:40]} 27. Rxe8+ {[%emt 0:02:35]} Nxe8 {[%emt 0:00:04]} 28. Be5 {[%emt 0:00:24]} Rc1 {[%emt 0:02:19]} 29. Bf1 {[%emt 0:00:35]} Bc8 {[%emt 0:00:33]} 30. Na5 {[%emt 0:02:30]} Nxf3+ {[%emt 0:00:30]} 31. exf3 {[%emt 0:00:06]} Ba6 {[%emt 0:00:02]} 32. Ne4 {[%emt 0:00:39]} Rxf1+ {[%emt 0:01:17]} 33. Kg2 {[%emt 0:00:04]} Re1 {[%emt 0:01:41]} 34. Nc6 {[%emt 0:03:05]} f5 {[%emt 0:02:39]} 35. Bc3 {[%emt 0:01:35]} Re2+ {[%emt 0:01:08]} 36. Nf2 {[%emt 0:00:06]} Bb7 {[%emt 0:00:36]} 37. Nxa7 {[%emt 0:01:06]} Nd6 {[%emt 0:00:29]} 38. a4 {[%emt 0:01:51]} g5 {[%emt 0:00:24]} 39. h3 {[%emt 0:02:34]} g4 {[%emt 0:00:22]} 40. hxg4 {[%emt 0:00:06]} fxg4 {[%emt 0:00:05]} 41. Kg1 {[%emt 0:30:22]} Bxf3 {[%emt 0:30:57]} 42. Nb5 {[%emt 0:00:51]} Nxb5 {[%emt 0:02:18]} 43. axb5 {[%emt 0:00:05]} h5 {[%emt 0:01:28]} 44. Nd3 {[%emt 0:00:49]} h4 {[%emt 0:00:00]} 45. gxh4 {[%emt 0:00:00]} g3 {[%emt 0:00:00]} 46. Ne5 {[%emt 0:00:00]} Bd5 {[%emt 0:00:00]} 47. Ng4 {[%emt 0:00:00]} Kf7 {[%emt 0:00:00]} 48. Ne5+ {[%emt 0:00:00]} Ke6 {[%emt 0:00:00]} 49. Ng6 {[%emt 0:00:00]} Kf5 {[%emt 0:00:00]} 50. h5 {[%emt 0:00:00]} Kg5 {[%emt 0:00:00]} 51. b6 {[%emt 0:00:00]} Rh2 {[%emt 0:00:00]} 0-1

[Event "Vezerkepzo GM Christmas 2021"]
[Site "Budapest"]
[Date "2022.01.02"]
[Round "7.4"]
[White "Leszko, Bence"]
[Black "Trost, Edvin"]
[Result "0-1"]
[ECO "A45"]
[WhiteElo "2253"]
[BlackElo "2271"]
[Annotator "ChessBase"]
[PlyCount "104"]
[EventDate "2021.12.26"]
[EventCountry "HUN"]
[SourceTitle "playchess.com"]
[Source "ChessBase"]
[SourceQuality "1"]
[TimeControl "40/5400+30:1800+30"]

1. d4 {[%emt 0:01:38]} Nf6 {[%emt 0:00:36]} 2. Bf4 {[%emt 0:00:07]} g6 {[%emt 0:02:36]} 3. e3 {[%emt 0:00:34]} Bg7 {[%emt 0:00:06]} 4. Nc3 {[%emt 0:00:19]} d5 {[%emt 0:05:32]} 5. Nb5 {[%emt 0:00:01]} Na6 {[%emt 0:01:36]} 6. h4 {[%emt 0:00:01]} h5 {[%emt 0:02:21]} 7. Nc3 {[%emt 0:07:07]} Nb8 {[%emt 0:00:37]} 8. Nb5 {[%emt 0:00:16]} Na6 {[%emt 0:00:21]} 9. Nh3 {[%emt 0:00:52]} c6 {[%emt 0:09:42]} 10. Nc3 {[%emt 0:00:11]} Nc7 {[%emt 0:00:17]} 11. Be5 {[%emt 0:02:57]} O-O {[%emt 0:04:33]} 12. f3 {[%emt 0:00:18]} Bxh3 {[%emt 0:07:41]} 13. Rxh3 {[%emt 0:00:17]} Nd7 {[%emt 0:01:11]} 14. Bxg7 {[%emt 0:00:39]} Kxg7 {[%emt 0:00:05]} 15. Qd2 {[%emt 0:02:56]} e5 {[%emt 0:01:48]} 16. O-O-O {[%emt 0:03:55]} exd4 {[%emt 0:11:31]} 17. Qxd4+ {[%emt 0:01:22]} Qf6 {[%emt 0:00:28]} 18. Qb4 {[%emt 0:01:07]} b5 {[%emt 0:11:26]} 19. e4 {[%emt 0:06:30]} Qf4+ {[%emt 0:03:37]} 20. Kb1 {[%emt 0:00:16]} Nf6 {[%emt 0:01:36]} 21. Qc5 {[%emt 0:06:02]} Rfd8 {[%emt 0:07:40]} 22. g3 {[%emt 0:13:19]} Qxf3 {[%emt 0:02:05]} 23. Be2 {[%emt 0:00:29]} Nxe4 {[%emt 0:01:14]} 24. Qe7 {[%emt 0:02:22]} Qf5 {[%emt 0:02:52]} 25. Nxe4 {[%emt 0:14:43]} Qxe4 {[%emt 0:00:12]} 26. Qxc7 {[%emt 0:00:19]} Qxe2 {[%emt 0:00:04]} 27. Rhh1 {[%emt 0:00:05]} Qe6 {[%emt 0:03:28]} 28. Rhf1 {[%emt 0:00:13]} Rd7 {[%emt 0:00:35]} 29. Qa5 {[%emt 0:00:12]} d4 {[%emt 0:01:33]} 30. Rf4 {[%emt 0:01:19]} Rad8 {[%emt 0:01:26]} 31. a4 {[%emt 0:00:36]} Qc4 {[%emt 0:03:04]} 32. Rdf1 {[%emt 0:02:26]} Re8 {[%emt 0:02:52]} 33. Re1 {[%emt 0:05:10]} Rde7 {[%emt 0:00:26]} 34. Rxe7 {[%emt 0:00:24]} Rxe7 {[%emt 0:00:06]} 35. Qd2 {[%emt 0:01:19]} c5 {[%emt 0:04:41]} 36. b3 {[%emt 0:05:25]} Qd5 {[%emt 0:00:08]} 37. axb5 {[%emt 0:04:12]} Qh1+ {[%emt 0:01:26]} 38. Ka2 {[%emt 0:00:01]} Re1 {[%emt 0:05:38]} 39. b4 {[%emt 0:00:05]} Ra1+ {[%emt 0:02:05]} 40. Kb3 {[%emt 0:00:00]} Qd5+ {[%emt 0:00:40]} 41. c4 {[%emt 0:30:09]} Qh1 {[%emt 0:30:09]} 42. Qc2 {[%emt 0:07:12]} Rb1+ {[%emt 0:00:13]} 43. Ka2 {[%emt 0:00:06]} Rxb4 {[%emt 0:00:04]} 44. g4 {[%emt 0:02:11]} Qxh4 {[%emt 0:01:10]} 45. Qe2 {[%emt 0:01:36]} Qd8 {[%emt 0:00:00]} 46. b6 {[%emt 0:00:00]} axb6 {[%emt 0:00:00]} 47. Qe5+ {[%emt 0:00:00]} f6 {[%emt 0:00:00]} 48. Qe4 {[%emt 0:00:00]} Qd7 {[%emt 0:00:00]} 49. Rf3 {[%emt 0:00:00]} hxg4 {[%emt 0:00:00]} 50. Ra3 {[%emt 0:00:00]} Ra4 {[%emt 0:00:00]} 51. Kb2 {[%emt 0:00:00]} Rxa3 {[%emt 0:00:00]} 52. Qxg4 {[%emt 0:00:00]} Qxg4 {[%emt 0:00:00]} 0-1

[Event "Vezerkepzo GM Christmas 2021"]
[Site "Budapest"]
[Date "2022.01.03"]
[Round "8.2"]
[White "Trost, Edvin"]
[Black "Ajay Krishna, S."]
[Result "0-1"]
[ECO "D39"]
[WhiteElo "2271"]
[BlackElo "2401"]
[Annotator "ChessBase"]
[PlyCount "74"]
[EventDate "2021.12.26"]
[EventCountry "HUN"]
[SourceTitle "playchess.com"]
[Source "ChessBase"]
[SourceQuality "1"]
[TimeControl "40/5400+30:1800+30"]

1. d4 {[%emt 0:00:21]} d5 {[%emt 0:00:08]} 2. c4 {[%emt 0:00:31]} e6 {[%emt 0:00:05]} 3. Nf3 {[%emt 0:00:17]} Nf6 {[%emt 0:00:07]} 4. Nc3 {[%emt 0:00:29]} Bb4 {[%emt 0:00:06]} 5. Bg5 {[%emt 0:00:16]} dxc4 {[%emt 0:00:50]} 6. Qa4+ {[%emt 0:07:36]} Nc6 {[%emt 0:01:03]} 7. e3 {[%emt 0:00:35]} Bd7 {[%emt 0:00:58]} 8. Qc2 {[%emt 0:09:58]} b5 {[%emt 0:01:23]} 9. a4 {[%emt 0:00:12]} a6 {[%emt 0:00:34]} 10. Bxf6 {[%emt 0:01:42]} gxf6 {[%emt 0:00:26]} 11. g3 {[%emt 0:00:37]} Ba5 {[%emt 0:03:20]} 12. Qd2 {[%emt 0:11:55]} b4 {[%emt 0:08:10]} 13. Nd1 {[%emt 0:01:50]} b3 {[%emt 0:09:44]} 14. Nc3 {[%emt 0:00:06]} Nb4 {[%emt 0:00:11]} 15. Bxc4 {[%emt 0:02:23]} Nc2+ {[%emt 0:02:05]} 16. Ke2 {[%emt 0:00:05]} Nxa1 {[%emt 0:00:44]} 17. Rxa1 {[%emt 0:00:04]} Rb8 {[%emt 0:03:45]} 18. Ra3 {[%emt 0:01:10]} Bb4 {[%emt 0:03:38]} 19. Ra1 {[%emt 0:01:30]} O-O {[%emt 0:11:29]} 20. Bxb3 {[%emt 0:02:25]} c5 {[%emt 0:05:25]} 21. Qd3 {[%emt 0:04:13]} Bc6 {[%emt 0:04:38]} 22. Bc2 {[%emt 0:03:35]} Bxf3+ {[%emt 0:00:36]} 23. Kxf3 {[%emt 0:00:06]} f5 {[%emt 0:00:10]} 24. Kg2 {[%emt 0:08:04]} Ba5 {[%emt 0:10:07]} 25. dxc5 {[%emt 0:12:36]} Rxb2 {[%emt 0:03:35]} 26. Ne2 {[%emt 0:15:24]} Qc8 {[%emt 0:05:07]} 27. Qc4 {[%emt 0:02:23]} Rb4 {[%emt 0:03:24]} 28. Qc3 {[%emt 0:01:13]} Rxa4 {[%emt 0:03:01]} 29. Qb2 {[%emt 0:06:34]} Rxa1 {[%emt 0:00:30]} 30. Qxa1 {[%emt 0:00:07]} Qxc5 {[%emt 0:00:26]} 31. Bb3 {[%emt 0:00:31]} Rb8 {[%emt 0:00:45]} 32. Qa2 {[%emt 0:03:48]} Qc6+ {[%emt 0:02:43]} 33. Kh3 {[%emt 0:00:48]} Bd8 {[%emt 0:02:29]} 34. Nd4 {[%emt 0:01:38]} Qb6 {[%emt 0:01:55]} 35. Bc4 {[%emt 0:02:17]} a5 {[%emt 0:00:31]} 36. Ne2 {[%emt 0:00:40]} Qb1 {[%emt 0:01:12]} 37. e4 {[%emt 0:00:13]} fxe4 {[%emt 0:00:00]} 0-1

[Event "Vezerkepzo GM Christmas 2021"]
[Site "Budapest"]
[Date "2022.01.03"]
[Round "8.4"]
[White "Sahithi Varshini M"]
[Black "Aditya Vikram Paul"]
[Result "1-0"]
[ECO "D02"]
[WhiteElo "2216"]
[BlackElo "2281"]
[Annotator "ChessBase"]
[PlyCount "63"]
[EventDate "2021.12.26"]
[EventCountry "HUN"]
[SourceTitle "playchess.com"]
[Source "ChessBase"]
[SourceQuality "1"]
[TimeControl "40/5400+30:1800+30"]

1. d4 {[%emt 0:01:27]} Nf6 {[%emt 0:00:16]} 2. Bf4 {[%emt 0:00:28]} d5 {[%emt 0:00:18]} 3. Nf3 {[%emt 0:00:37]} c5 {[%emt 0:00:32]} 4. e3 {[%emt 0:00:10]} Bg4 {[%emt 0:00:49]} 5. Be2 {[%emt 0:01:02]} e6 {[%emt 0:00:08]} 6. c3 {[%emt 0:00:42]} Be7 {[%emt 0:01:13]} 7. Nbd2 {[%emt 0:00:07]} O-O {[%emt 0:00:06]} 8. O-O {[%emt 0:01:29]} h6 {[%emt 0:00:24]} 9. Ne5 {[%emt 0:01:20]} Bf5 {[%emt 0:01:21]} 10. h3 {[%emt 0:03:51]} Nbd7 {[%emt 0:04:33]} 11. Bd3 {[%emt 0:04:15]} Bxd3 {[%emt 0:04:09]} 12. Nxd3 {[%emt 0:00:03]} c4 {[%emt 0:00:12]} 13. Ne5 {[%emt 0:00:09]} Nxe5 {[%emt 0:00:06]} 14. dxe5 {[%emt 0:01:23]} Nd7 {[%emt 0:00:14]} 15. Nf3 {[%emt 0:09:42]} Nc5 {[%emt 0:00:26]} 16. Qe2 {[%emt 0:00:02]} b5 {[%emt 0:01:06]} 17. Nd4 {[%emt 0:00:51]} Qb6 {[%emt 0:00:14]} 18. Qh5 {[%emt 0:17:02]} Kh7 {[%emt 0:04:54]} 19. g4 {[%emt 0:02:25]} Nd3 {[%emt 0:02:47]} 20. g5 {[%emt 0:02:21]} b4 {[%emt 0:03:04]} 21. Kh2 {[%emt 0:03:07]} Nxf4 {[%emt 0:03:04]} 22. exf4 {[%emt 0:00:02]} bxc3 {[%emt 0:00:22]} 23. bxc3 {[%emt 0:00:09]} Qb2 {[%emt 0:00:36]} 24. gxh6 {[%emt 0:03:02]} g6 {[%emt 0:01:43]} 25. Qf3 {[%emt 0:00:03]} Qa3 {[%emt 0:05:08]} 26. Qg3 {[%emt 0:01:51]} Bc5 {[%emt 0:05:48]} 27. Nf3 {[%emt 0:01:25]} Kxh6 {[%emt 0:01:11]} 28. f5 {[%emt 0:04:29]} exf5 {[%emt 0:01:02]} 29. Qh4+ {[%emt 0:00:08]} Kg7 {[%emt 0:00:58]} 30. Qf6+ {[%emt 0:00:03]} Kh6 {[%emt 0:01:20]} 31. Nh4 {[%emt 0:00:41]} Kh7 {[%emt 0:01:27]} 32. Nxf5 {[%emt 0:00:23]} 1-0

[Event "Vezerkepzo GM Christmas 2021"]
[Site "Budapest"]
[Date "2022.01.03"]
[Round "8.5"]
[White "Nagy, Gabor"]
[Black "Kojima, Shinya"]
[Result "1-0"]
[ECO "D11"]
[WhiteElo "2527"]
[BlackElo "2392"]
[Annotator "ChessBase"]
[PlyCount "103"]
[EventDate "2021.12.26"]
[EventCountry "HUN"]
[SourceTitle "playchess.com"]
[Source "ChessBase"]
[SourceQuality "1"]
[TimeControl "40/5400+30:1800+30"]

1. c4 {[%emt 0:05:35]} c6 {[%emt 0:00:07]} 2. d4 {[%emt 0:00:26]} d5 {[%emt 0:00:08]} 3. Nf3 {[%emt 0:00:24]} Nf6 {[%emt 0:00:08]} 4. e3 {[%emt 0:00:29]} Bg4 {[%emt 0:03:49]} 5. h3 {[%emt 0:00:36]} Bxf3 {[%emt 0:00:34]} 6. Qxf3 {[%emt 0:00:26]} e6 {[%emt 0:00:06]} 7. Bd3 {[%emt 0:00:37]} Nbd7 {[%emt 0:00:38]} 8. O-O {[%emt 0:00:52]} Bd6 {[%emt 0:01:36]} 9. Nc3 {[%emt 0:01:08]} O-O {[%emt 0:00:37]} 10. Bd2 {[%emt 0:02:26]} Re8 {[%emt 0:02:23]} 11. Rad1 {[%emt 0:02:09]} Qe7 {[%emt 0:01:44]} 12. Qe2 {[%emt 0:07:53]} dxc4 {[%emt 0:04:23]} 13. Bxc4 {[%emt 0:00:23]} Nb6 {[%emt 0:00:29]} 14. Bd3 {[%emt 0:03:40]} e5 {[%emt 0:01:06]} 15. dxe5 {[%emt 0:00:43]} Bxe5 {[%emt 0:02:03]} 16. Rfe1 {[%emt 0:03:49]} Nbd5 {[%emt 0:03:12]} 17. Nxd5 {[%emt 0:00:47]} Nxd5 {[%emt 0:00:33]} 18. Bc1 {[%emt 0:00:38]} g6 {[%emt 0:04:26]} 19. a3 {[%emt 0:00:34]} Bc7 {[%emt 0:05:23]} 20. g3 {[%emt 0:00:50]} Bb6 {[%emt 0:09:17]} 21. Kg2 {[%emt 0:02:34]} h5 {[%emt 0:11:00]} 22. h4 {[%emt 0:05:19]} Nf6 {[%emt 0:02:14]} 23. f3 {[%emt 0:02:09]} Kg7 {[%emt 0:20:44]} 24. e4 {[%emt 0:00:43]} Nd7 {[%emt 0:04:56]} 25. b4 {[%emt 0:00:46]} Ne5 {[%emt 0:01:35]} 26. Bb2 {[%emt 0:00:50]} Kg8 {[%emt 0:06:38]} 27. Bc2 {[%emt 0:00:13]} Rad8 {[%emt 0:01:22]} 28. Bb3 {[%emt 0:00:26]} Rxd1 {[%emt 0:01:41]} 29. Rxd1 {[%emt 0:00:28]} Rd8 {[%emt 0:01:19]} 30. Rxd8+ {[%emt 0:00:12]} Bxd8 {[%emt 0:00:08]} 31. Qe3 {[%emt 0:01:11]} Qd6 {[%emt 0:05:16]} 32. Qd4 {[%emt 0:01:21]} Bc7 {[%emt 0:04:52]} 33. f4 {[%emt 0:00:21]} Qxd4 {[%emt 0:00:09]} 34. Bxd4 {[%emt 0:00:03]} Nd7 {[%emt 0:00:35]} 35. Bxa7 {[%emt 0:00:31]} Bb6 {[%emt 0:00:24]} 36. Bxb6 {[%emt 0:00:07]} Nxb6 {[%emt 0:00:05]} 37. Kf3 {[%emt 0:00:09]} Kg7 {[%emt 0:01:21]} 38. Ke3 {[%emt 0:00:22]} Nd7 {[%emt 0:01:45]} 39. e5 {[%emt 0:00:54]} Kf8 {[%emt 0:00:39]} 40. Ke4 {[%emt 0:01:11]} Ke7 {[%emt 0:00:32]} 41. f5 {[%emt 0:30:19]} Nf8 {[%emt 0:04:06]} 42. Bd1 {[%emt 0:00:00]} Nd7 {[%emt 0:02:04]} 43. Kf4 {[%emt 0:00:00]} Kf8 {[%emt 0:01:37]} 44. Bb3 {[%emt 0:00:00]} f6 {[%emt 0:04:00]} 45. exf6 {[%emt 0:00:00]} Nxf6 {[%emt 0:01:00]} 46. fxg6 {[%emt 0:00:00]} Kg7 {[%emt 0:00:30]} 47. Bc2 {[%emt 0:00:00]} Kh6 {[%emt 0:03:25]} 48. Ke5 {[%emt 0:00:00]} Nd5 {[%emt 0:06:13]} 49. Kd6 {[%emt 0:00:00]} Kg7 {[%emt 0:01:52]} 50. Be4 {[%emt 0:00:00]} Nc3 {[%emt 0:02:30]} 51. Bd3 {[%emt 0:00:00]} Nd5 {[%emt 0:00:58]} 52. b5 {[%emt 0:00:00]} 1-0

[Event "Vezerkepzo GM Christmas 2021"]
[Site "Budapest"]
[Date "2022.01.04"]
[Round "9.1"]
[White "Kojima, Shinya"]
[Black "Avinash Ramesh"]
[Result "1/2-1/2"]
[ECO "D91"]
[WhiteElo "2392"]
[BlackElo "2391"]
[Annotator "ChessBase"]
[PlyCount "111"]
[EventDate "2021.12.26"]
[EventCountry "HUN"]
[SourceTitle "playchess.com"]
[Source "ChessBase"]
[SourceQuality "1"]
[TimeControl "40/5400+30:1800+30"]

1. d4 {[%emt 0:00:04]} Nf6 {[%emt 0:00:05]} 2. c4 {[%emt 0:00:06]} g6 {[%emt 0:00:02]} 3. Nf3 {[%emt 0:00:14]} Bg7 {[%emt 0:00:06]} 4. Nc3 {[%emt 0:00:08]} d5 {[%emt 0:00:06]} 5. Bg5 {[%emt 0:00:11]} dxc4 {[%emt 0:01:11]} 6. e4 {[%emt 0:00:53]} c5 {[%emt 0:00:05]} 7. Bxc4 {[%emt 0:00:38]} Qa5 {[%emt 0:06:40]} 8. O-O {[%emt 0:06:02]} cxd4 {[%emt 0:02:21]} 9. Bb5+ {[%emt 0:16:06]} Nc6 {[%emt 0:11:12]} 10. Qxd4 {[%emt 0:11:44]} O-O {[%emt 0:00:37]} 11. Bxc6 {[%emt 0:04:48]} bxc6 {[%emt 0:00:07]} 12. e5 {[%emt 0:01:49]} Nd7 {[%emt 0:08:59]} 13. Bxe7 {[%emt 0:01:06]} Re8 {[%emt 0:02:09]} 14. Qh4 {[%emt 0:07:43]} Nxe5 {[%emt 0:09:48]} 15. Nxe5 {[%emt 0:00:15]} Qxe5 {[%emt 0:00:42]} 16. Rfe1 {[%emt 0:01:42]} Qh5 {[%emt 0:01:11]} 17. Bf6 {[%emt 0:22:15]} Rxe1+ {[%emt 0:02:07]} 18. Rxe1 {[%emt 0:00:02]} Qxh4 {[%emt 0:00:48]} 19. Re8+ {[%emt 0:00:35]} Bf8 {[%emt 0:00:02]} 20. Bxh4 {[%emt 0:00:08]} Bb7 {[%emt 0:00:03]} 21. Rxa8 {[%emt 0:00:21]} Bxa8 {[%emt 0:00:02]} 22. Bg5 {[%emt 0:07:11]} Bb7 {[%emt 0:06:35]} 23. Be3 {[%emt 0:03:16]} a6 {[%emt 0:00:12]} 24. Kf1 {[%emt 0:03:58]} f5 {[%emt 0:01:25]} 25. Ke2 {[%emt 0:01:28]} Kf7 {[%emt 0:00:10]} 26. Na4 {[%emt 0:01:51]} Bc8 {[%emt 0:00:26]} 27. Kd3 {[%emt 0:01:28]} Be6 {[%emt 0:00:11]} 28. b3 {[%emt 0:00:21]} Bd5 {[%emt 0:00:15]} 29. f3 {[%emt 0:01:01]} Bd6 {[%emt 0:01:27]} 30. h3 {[%emt 0:00:48]} Ke6 {[%emt 0:00:07]} 31. Bc5 {[%emt 0:01:11]} Bh2 {[%emt 0:00:03]} 32. Bb6 {[%emt 0:01:13]} Bd6 {[%emt 0:00:11]} 33. Bc5 {[%emt 0:00:31]} Bh2 {[%emt 0:00:02]} 34. Bb4 {[%emt 0:01:21]} Bg1 {[%emt 0:00:17]} 35. Bd2 {[%emt 0:02:36]} c5 {[%emt 0:01:00]} 36. Be3 {[%emt 0:01:46]} Bxe3 {[%emt 0:00:06]} 37. Kxe3 {[%emt 0:00:04]} Kd6 {[%emt 0:00:01]} 38. Nb2 {[%emt 0:01:16]} a5 {[%emt 0:05:25]} 39. h4 {[%emt 0:00:35]} Ke5 {[%emt 0:02:27]} 40. Nd3+ {[%emt 0:00:21]} Kd6 {[%emt 0:00:01]} 41. Nb2 {[%emt 0:30:31]} Ke5 {[%emt 0:30:02]} 42. f4+ {[%emt 0:00:00]} Kd6 {[%emt 0:00:00]} 43. g3 {[%emt 0:00:00]} Kc6 {[%emt 0:00:00]} 44. Kd2 {[%emt 0:00:00]} Kd6 {[%emt 0:00:00]} 45. Kc3 {[%emt 0:00:00]} Kc7 {[%emt 0:00:00]} 46. Nd3 {[%emt 0:00:00]} Kd6 {[%emt 0:00:00]} 47. Ne5 {[%emt 0:00:00]} Kc7 {[%emt 0:00:00]} 48. Nd3 {[%emt 0:00:00]} Kd6 {[%emt 0:00:00]} 49. Nf2 {[%emt 0:00:00]} Be6 {[%emt 0:00:00]} 50. Nh3 {[%emt 0:00:00]} Kc6 {[%emt 0:00:00]} 51. Ng5 {[%emt 0:00:00]} Bg8 {[%emt 0:00:00]} 52. Nf3 {[%emt 0:00:00]} Kd6 {[%emt 0:00:00]} 53. Ne5 {[%emt 0:00:00]} Be6 {[%emt 0:00:00]} 54. Nf3 {[%emt 0:02:27]} Bd5 {[%emt 0:00:00]} 55. Nd2 {[%emt 0:01:04]} Be6 {[%emt 0:00:00]} 56. Nf3 {[%emt 0:01:34]} 1/2-1/2

[Event "Vezerkepzo GM Christmas 2021"]
[Site "Budapest"]
[Date "2022.01.04"]
[Round "9.2"]
[White "Aditya Vikram Paul"]
[Black "Nagy, Gabor"]
[Result "1/2-1/2"]
[ECO "A33"]
[WhiteElo "2281"]
[BlackElo "2527"]
[Annotator "ChessBase"]
[PlyCount "84"]
[EventDate "2021.12.26"]
[EventCountry "HUN"]
[SourceTitle "playchess.com"]
[Source "ChessBase"]
[SourceQuality "1"]
[TimeControl "40/5400+30:1800+30"]

1. d4 {[%emt 0:00:05]} Nf6 {[%emt 0:00:50]} 2. c4 {[%emt 0:00:05]} c5 {[%emt 0:00:31]} 3. Nf3 {[%emt 0:00:06]} cxd4 {[%emt 0:00:16]} 4. Nxd4 {[%emt 0:00:06]} Nc6 {[%emt 0:00:23]} 5. Nc3 {[%emt 0:00:38]} Qb6 {[%emt 0:03:02]} 6. Nc2 {[%emt 0:01:52]} e6 {[%emt 0:01:21]} 7. g3 {[%emt 0:02:06]} d5 {[%emt 0:00:31]} 8. e3 {[%emt 0:03:29]} dxc4 {[%emt 0:01:32]} 9. Bxc4 {[%emt 0:00:07]} Be7 {[%emt 0:04:45]} 10. O-O {[%emt 0:00:28]} O-O {[%emt 0:00:15]} 11. e4 {[%emt 0:02:27]} a6 {[%emt 0:01:06]} 12. Qe2 {[%emt 0:01:40]} Nd7 {[%emt 0:02:09]} 13. Rb1 {[%emt 0:03:41]} Qc7 {[%emt 0:01:52]} 14. a3 {[%emt 0:02:54]} b5 {[%emt 0:00:49]} 15. Ba2 {[%emt 0:00:04]} Bb7 {[%emt 0:01:17]} 16. Bf4 {[%emt 0:04:17]} Nde5 {[%emt 0:01:10]} 17. Rfd1 {[%emt 0:01:46]} Rad8 {[%emt 0:00:53]} 18. Rxd8 {[%emt 0:03:18]} Rxd8 {[%emt 0:00:19]} 19. Rd1 {[%emt 0:00:04]} h6 {[%emt 0:00:46]} 20. Qh5 {[%emt 0:08:43]} Bf6 {[%emt 0:01:33]} 21. Kg2 {[%emt 0:02:39]} Rxd1 {[%emt 0:01:12]} 22. Qxd1 {[%emt 0:00:09]} Qd7 {[%emt 0:03:45]} 23. Qxd7 {[%emt 0:01:31]} Nxd7 {[%emt 0:00:13]} 24. f3 {[%emt 0:01:54]} Nde5 {[%emt 0:01:24]} 25. Bxe5 {[%emt 0:04:26]} Bxe5 {[%emt 0:00:26]} 26. Kf2 {[%emt 0:00:59]} Kf8 {[%emt 0:00:16]} 27. f4 {[%emt 0:02:17]} Bc7 {[%emt 0:00:18]} 28. Ke3 {[%emt 0:01:40]} Bb6+ {[%emt 0:00:16]} 29. Kd3 {[%emt 0:00:25]} Ke7 {[%emt 0:00:24]} 30. Ne2 {[%emt 0:01:02]} Nb8 {[%emt 0:01:00]} 31. b4 {[%emt 0:01:53]} Nd7 {[%emt 0:00:14]} 32. e5 {[%emt 0:01:51]} f6 {[%emt 0:03:59]} 33. Ned4 {[%emt 0:06:22]} fxe5 {[%emt 0:00:27]} 34. Nxe6 {[%emt 0:00:06]} g6 {[%emt 0:01:20]} 35. Ne3 {[%emt 0:02:44]} exf4 {[%emt 0:02:52]} 36. gxf4 {[%emt 0:01:09]} Kd6 {[%emt 0:00:47]} 37. Ng4 {[%emt 0:06:08]} h5 {[%emt 0:00:35]} 38. Ne3 {[%emt 0:06:28]} Nf6 {[%emt 0:00:31]} 39. Ng5 {[%emt 0:00:20]} Bxe3 {[%emt 0:04:58]} 40. Kxe3 {[%emt 0:00:26]} Ng4+ {[%emt 0:00:06]} 41. Kd4 {[%emt 0:33:01]} Nxh2 {[%emt 0:30:10]} 42. Bf7 {[%emt 0:00:42]} Nf3+ {[%emt 0:00:26]} 1/2-1/2